bitfinex/quotes_BTCUSD_20251029
["timestamp","ask_amount","ask_price","bid_price","bid_amount"]
[1761755220480,0.18046877,111440.0,111430.0,0.29588487]
[1761755220683,0.001,111440.0,111430.0,0.29588487]
[1761755221338,0.001,111440.0,111430.0,0.38570388]
[1761755222200,0.66951083,111470.0,111460.0,0.16447656]
[1761755222441,0.66951083,111470.0,111460.0,0.21662656]
[1761755223095,0.70203083,111470.0,111460.0,0.05215]
[1761755223303,0.52258302,111470.0,111460.0,0.23158656]
[1761755223479,0.70200349,111470.0,111460.0,0.23158656]
[1761755224107,0.2303369,111470.0,111460.0,0.05215]
[1761755224246,0.70200349,111470.0,111460.0,0.05215]
[1761755225338,0.70300349,111470.0,111460.0,0.23158656]
[1761755225759,0.70300349,111470.0,111460.0,0.05215]
[1761755227909,0.70300349,111470.0,111450.0,0.01773]
[1761755227910,0.17943656,111460.0,111450.0,0.01773]
[1761755228112,0.68430315,111460.0,111450.0,0.01773]
[1761755228334,0.73356315,111460.0,111450.0,0.01773]
[1761755228909,0.73356315,111460.0,111450.0,0.04843]
[1761755229127,0.73356315,111460.0,111450.0,0.01773]
[1761755229337,0.82314047,111460.0,111450.0,0.01873]
[1761755229566,0.68430315,111460.0,111450.0,0.04943]
[1761755229781,0.17943656,111460.0,111450.0,0.09624]
[1761755230004,0.68430315,111460.0,111450.0,0.04943]
[1761755231489,0.65110315,111460.0,111450.0,0.27886266]
[1761755231709,0.65110315,111460.0,111450.0,0.09941]
[1761755232378,0.65099315,111460.0,111450.0,0.27886266]
[1761755232577,0.68327315,111460.0,111450.0,0.04943]
[1761755233165,0.17932656,111460.0,111450.0,0.04943]
[1761755233388,0.68327315,111460.0,111450.0,0.22888266]
[1761755233608,0.68327315,111460.0,111450.0,0.04943]
[1761755234334,0.68327315,111460.0,111450.0,0.22888266]
[1761755235273,0.68327315,111460.0,111450.0,0.04943]
[1761755235488,2.73259315,111460.0,111450.0,0.001]
[1761755235722,3.10877543,111460.0,111450.0,0.001]
[1761755236351,0.17946877,111440.0,111430.0,0.22453863]
[1761755236552,0.19415719,111450.0,111440.0,0.17946877]
[1761755236800,0.17946877,111440.0,111430.0,0.27451863]
[1761755236980,0.68341536,111440.0,111430.0,0.22453863]
[1761755237281,0.68341536,111440.0,111430.0,0.25493863]
[1761755237487,0.73273536,111440.0,111430.0,0.22453863]
[1761755237690,0.73273536,111440.0,111430.0,0.06648]
[1761755237893,1.20440195,111440.0,111430.0,5e-05]
[1761755238075,0.82255437,111440.0,111430.0,5e-05]
[1761755238269,1.29422096,111440.0,111430.0,5e-05]
[1761755238884,1.29522096,111440.0,111430.0,5e-05]
[1761755239429,0.73373536,111440.0,111430.0,5e-05]
[1761755240389,0.73373536,111440.0,111430.0,0.03045]
[1761755240941,0.73373536,111440.0,111430.0,5e-05]
[1761755242665,1.17585823,111440.0,111430.0,5e-05]
[1761755243343,1.06320019,111440.0,111430.0,5e-05]
[1761755243959,1.01388019,111440.0,111430.0,0.03045]
[1761755244542,1.06299019,111440.0,111430.0,5e-05]
[1761755245864,1.06299019,111440.0,111430.0,0.03049]
[1761755245865,1.01388019,111440.0,111430.0,0.03049]
[1761755248284,0.18046877,111440.0,111430.0,0.28619487]
[1761755248517,1.01114391,111440.0,111430.0,0.28619487]
[1761755248691,1.04135391,111440.0,111430.0,0.28619487]
[1761755248898,1.04135391,111440.0,111430.0,5e-05]
[1761755248899,1.09046391,111440.0,111430.0,5e-05]
[1761755249091,1.18028292,111440.0,111430.0,5e-05]
[1761755249697,0.49465757,111440.0,111430.0,5e-05]
[1761755249896,1.08946391,111440.0,111430.0,5e-05]
[1761755251919,3.84480148,111440.0,111430.0,5e-05]
[1761755252104,5.09081419,111440.0,111430.0,5e-05]
[1761755252312,5.21681548,111440.0,111430.0,5e-05]
[1761755252556,0.51950098,111420.0,111410.0,5e-05]
[1761755252766,5.10339541,111420.0,111410.0,5e-05]
[1761755252975,5.15250541,111420.0,111410.0,5e-05]
[1761755253418,5.17948876,111420.0,111410.0,5e-05]
[1761755255411,5.24600822,111420.0,111410.0,5e-05]
[1761755255619,5.33558554,111420.0,111410.0,5e-05]
[1761755255856,5.37176782,111420.0,111410.0,5e-05]
[1761755256023,5.37876782,111420.0,111410.0,0.00105]
[1761755256422,5.37976782,111420.0,111410.0,0.00105]
[1761755258172,2.67953321,111400.0,111390.0,0.03042625]
[1761755258368,4.94988893,111400.0,111390.0,0.03042625]
[1761755258598,5.33645893,111400.0,111390.0,0.03042625]
[1761755259158,4.09044622,111400.0,111390.0,0.03042625]
[1761755259560,0.61003375,111400.0,111390.0,0.06067625]
[1761755259765,0.58304321,111400.0,111390.0,0.06167625]
[1761755259970,1.1383048,111400.0,111390.0,0.03142625]
[1761755261005,1.0917348,111400.0,111390.0,0.09567625]
[1761755261324,1.0917348,111400.0,111390.0,0.03142625]
[1761755261536,0.37718228,111400.0,111390.0,0.24122558]
[1761755261747,0.18053321,111400.0,111390.0,0.28840558]
[1761755261964,0.001,111400.0,111390.0,0.37822459]
[1761755262182,0.001,111400.0,111390.0,0.8507339]
[1761755262389,0.001,111400.0,111390.0,1.28055291]
[1761755262795,0.67281418,111430.0,111420.0,0.17950098]
[1761755262999,0.70383418,111430.0,111420.0,0.20975098]
[1761755264652,0.67281418,111430.0,111420.0,0.20975098]
[1761755264859,0.65199418,111430.0,111420.0,0.25693098]
[1761755265069,0.47350931,111430.0,111420.0,0.25993098]
[1761755265277,0.001,111430.0,111420.0,0.25993098]
[1761755265940,0.001,111430.0,111420.0,0.3970948]
[1761755266149,0.001,111430.0,111420.0,0.34974999]
[1761755268103,0.18048487,111430.0,111420.0,0.17024901]
[1761755268306,0.76023418,111430.0,111420.0,0.003]
[1761755268522,3.22623547,111430.0,111420.0,0.003]
[1761755268733,0.17951709,111410.0,111400.0,0.02697154]
[1761755268925,0.17953321,111400.0,111390.0,0.30013304]
[1761755269158,0.47250931,111400.0,111390.0,0.30013304]
[1761755269339,0.21369709,111410.0,111400.0,0.22671321]
[1761755269340,0.6520264,111410.0,111400.0,0.22671321]
[1761755269566,0.6520264,111410.0,111400.0,0.25696321]
[1761755270615,0.6520264,111410.0,111400.0,0.03025]
[1761755270829,0.17953321,111400.0,111390.0,0.30013304]
[1761755271005,0.65204252,111400.0,111390.0,0.33038304]
[1761755271838,0.47250931,111400.0,111390.0,0.33038304]
[1761755272063,0.47244986,111400.0,111390.0,0.33038304]
[1761755272204,0.65198307,111400.0,111390.0,0.33138304]
[1761755272421,0.17953321,111400.0,111390.0,0.33138304]
[1761755272586,0.65304252,111400.0,111390.0,0.33438304]
[1761755272956,0.65304252,111400.0,111390.0,0.28720304]
[1761755273252,0.001,111400.0,111390.0,0.33438304]
[1761755273551,0.65304252,111400.0,111390.0,0.38577754]
[1761755273748,0.65304252,111400.0,111390.0,0.33438304]
[1761755273951,0.47350931,111400.0,111390.0,0.33438304]
[1761755274520,0.001,111400.0,111390.0,0.33438304]
[1761755275144,0.47350931,111400.0,111390.0,0.33438304]
[1761755275345,0.65304252,111400.0,111390.0,0.33438304]
[1761755275548,0.68038252,111400.0,111390.0,0.09867625]
[1761755275747,0.68038252,111400.0,111390.0,0.27822558]
[1761755276201,1.19907183,111400.0,111390.0,0.03442625]
[1761755278009,1.23525411,111400.0,111390.0,0.03442625]
[1761755278216,0.7627448,111400.0,111390.0,0.03442625]
[1761755278387,0.6892248,111400.0,111390.0,0.27822558]
[1761755278589,0.6892248,111400.0,111390.0,0.14585625]
[1761755278793,0.7167548,111400.0,111390.0,0.09867625]
[1761755278975,0.85238199,111400.0,111390.0,0.03442625]
[1761755279382,1.3248913,111400.0,111390.0,0.03442625]
[1761755280583,3.75471031,111400.0,111390.0,0.03442625]
[1761755280904,3.78169776,111400.0,111390.0,0.03442625]
[1761755281292,3.56776096,111400.0,111390.0,0.03342625]
[1761755281800,3.56776096,111400.0,111390.0,0.03042625]
[1761755283136,3.63835968,111400.0,111390.0,0.03142625]
[1761755283773,3.64835967,111400.0,111390.0,1e-08]
[1761755283934,3.65835966,111400.0,111390.0,1e-08]
[1761755285557,3.64835967,111400.0,111390.0,1e-08]
[1761755285796,3.65835966,111400.0,111390.0,1e-08]
[1761755288480,3.0725616,111390.0,111380.0,1e-08]
[1761755288684,4.00173156,111390.0,111380.0,1e-08]
[1761755289210,3.79173157,111390.0,111380.0,1e-08]
[1761755289410,3.45578016,111390.0,111380.0,1e-08]
[1761755289633,3.44728016,111390.0,111380.0,1e-08]
[1761755289768,3.45028016,111390.0,111380.0,0.00100001]
[1761755289968,3.11028016,111390.0,111380.0,0.00100001]
[1761755290171,3.10728016,111390.0,111380.0,1e-08]
[1761755290380,3.19709917,111390.0,111380.0,1e-08]
[1761755290578,3.19709917,111390.0,111380.0,0.00100001]
[1761755290579,3.54509917,111390.0,111380.0,0.00100001]
[1761755290823,3.58128145,111390.0,111380.0,0.00100001]
[1761755291030,3.57328145,111390.0,111380.0,1e-08]
[1761755291235,3.57628145,111390.0,111380.0,0.00100001]
[1761755292362,3.54009917,111390.0,111380.0,0.00100001]
[1761755292566,3.57628145,111390.0,111380.0,0.00100001]
[1761755296023,3.54009917,111390.0,111380.0,0.00100001]
[1761755296199,3.57628145,111390.0,111380.0,0.00100001]
[1761755296397,2.84519963,111390.0,111380.0,0.00100001]
[1761755296778,3.57628145,111390.0,111380.0,0.00100001]
[1761755304247,0.17961383,111350.0,111340.0,0.03365]
[1761755304455,1.04975877,111350.0,111340.0,0.03365]
[1761755304656,1.09912877,111350.0,111340.0,0.0004]
[1761755305090,1.09912877,111350.0,111340.0,0.00338425]
[1761755305320,1.04975877,111350.0,111340.0,0.00338425]
[1761755305534,1.09912877,111350.0,111340.0,0.18401421]
[1761755305733,0.34,111360.0,111350.0,0.17961383]
[1761755305940,0.5195977,111360.0,111350.0,0.29361383]
[1761755306144,0.34,111360.0,111350.0,0.29361383]
[1761755306539,0.528589,111370.0,111360.0,0.1795977]
[1761755306728,0.51958157,111370.0,111360.0,0.2119477]
[1761755306933,0.51958157,111370.0,111360.0,0.2603477]
[1761755307523,0.60915889,111370.0,111360.0,0.2603477]
[1761755307884,0.51958157,111370.0,111360.0,0.2603477]
[1761755308086,0.17958157,111370.0,111360.0,0.2603477]
[1761755308730,0.18058157,111370.0,111360.0,0.2663477]
[1761755309129,0.001,111370.0,111360.0,0.2663477]
[1761755309361,0.001,111370.0,111360.0,0.69616671]
[1761755309679,0.001,111370.0,111360.0,0.78598572]
[1761755310010,0.001,111370.0,111360.0,0.44598572]
[1761755310666,0.18894291,111390.0,111370.0,0.17956888]
[1761755310847,0.18894291,111390.0,111380.0,0.06592]
[1761755311086,0.92002473,111390.0,111380.0,0.11432]
[1761755311711,0.92002473,111390.0,111380.0,0.29388545]
[1761755311918,0.18894291,111390.0,111380.0,0.11432]
[1761755312589,0.18894291,111390.0,111380.0,0.11437]
[1761755313211,0.18994291,111390.0,111380.0,0.29593545]
[1761755313636,0.18994291,111390.0,111380.0,0.11637]
[1761755313851,1.04269374,111390.0,111380.0,0.06797]
[1761755314950,3.21806503,111390.0,111380.0,0.00205]
[1761755315137,3.21806503,111390.0,111380.0,0.0021]
[1761755315295,3.55806503,111390.0,111380.0,0.0021]
[1761755316910,3.55806503,111390.0,111380.0,0.0001]
[1761755317261,3.56006503,111390.0,111380.0,0.0011]
[1761755318643,3.5684017,111390.0,111380.0,0.0011]
[1761755320657,3.8111017,111390.0,111380.0,0.0011]
[1761755321854,3.9056217,111390.0,111380.0,0.0011]
[1761755322076,3.8111017,111390.0,111380.0,0.0011]
[1761755322282,3.80276503,111390.0,111380.0,0.0011]
[1761755323004,3.81110136,111390.0,111380.0,0.0011]
[1761755323211,3.80276503,111390.0,111380.0,0.0011]
[1761755324994,3.47024602,111390.0,111380.0,0.0011]
[1761755330599,2.7391642,111390.0,111380.0,0.0011]
[1761755330805,3.47024602,111390.0,111380.0,0.0011]
[1761755333265,3.01958157,111370.0,111360.0,0.00254933]
[1761755333474,3.43453468,111370.0,111360.0,0.00254933]
[1761755333689,3.48240468,111370.0,111360.0,0.00254933]
[1761755333873,3.57222369,111370.0,111360.0,0.00254933]
[1761755334648,3.57322369,111370.0,111360.0,0.00554933]
[1761755334848,3.57222369,111370.0,111360.0,0.00254933]
[1761755335281,3.57422369,111370.0,111360.0,0.00354933]
[1761755337528,3.64098173,111370.0,111360.0,0.00354933]
[1761755341980,3.73550173,111370.0,111360.0,0.00354933]
[1761755342221,3.64098173,111370.0,111360.0,0.00354933]
[1761755343392,3.38252406,111370.0,111360.0,0.00354933]
[1761755345486,3.38252406,111370.0,111360.0,0.03660933]
[1761755345487,0.57945157,111370.0,111360.0,0.03660933]
[1761755345710,1.05207572,111370.0,111360.0,0.03660933]
[1761755345931,1.05207572,111370.0,111360.0,0.00354933]
[1761755346128,1.136128,111370.0,111360.0,0.00354933]
[1761755349097,1.22594701,111370.0,111360.0,0.00354933]
[1761755349244,1.31576602,111370.0,111360.0,0.00354933]
[1761755351103,1.01775461,111370.0,111360.0,0.00354933]
[1761755351307,1.19733618,111370.0,111360.0,0.00354933]
[1761755352163,1.05964717,111370.0,111360.0,0.03607933]
[1761755352310,0.18158157,111370.0,111360.0,0.08600933]
[1761755352513,0.18158157,111370.0,111360.0,0.29351526]
[1761755352966,0.18158157,111370.0,111360.0,0.26560703]
[1761755353173,0.002,111370.0,111360.0,0.26560703]
[1761755353800,0.002,111370.0,111360.0,0.82805019]
[1761755354027,0.17958011,111380.0,111370.0,0.17958157]
[1761755354196,0.17958011,111380.0,111370.0,0.29229157]
[1761755354402,0.17958011,111380.0,111370.0,0.11271]
[1761755354612,0.76852672,111380.0,111370.0,0.06511192]
[1761755354940,0.29590257,111380.0,111370.0,0.06511192]
[1761755355119,0.21089011,111380.0,111370.0,0.06511192]
[1761755355344,0.17958011,111380.0,111370.0,0.11504192]
[1761755355551,0.18058011,111380.0,111370.0,0.11904192]
[1761755355994,3.19575089,111380.0,111370.0,0.00633192]
[1761755356196,3.2855699,111380.0,111370.0,0.00633192]
[1761755357000,3.2845699,111380.0,111370.0,0.00233192]
[1761755357207,3.2865699,111380.0,111370.0,0.00333192]
[1761755357554,3.2845699,111380.0,111370.0,0.00233192]
[1761755357771,3.2865699,111380.0,111370.0,0.00333192]
[1761755357981,3.35233237,111380.0,111370.0,0.00333192]
[1761755359022,3.26251336,111380.0,111370.0,0.00333192]
[1761755359563,3.21726336,111380.0,111370.0,0.03586192]
[1761755359769,1.11531861,111380.0,111370.0,0.03586192]
[1761755359948,0.67887674,111380.0,111370.0,0.03586192]
[1761755360267,1.15150089,111380.0,111370.0,0.03586192]
[1761755360473,1.2413199,111380.0,111370.0,0.00333192]
[1761755360802,1.2865699,111380.0,111370.0,0.00333192]
[1761755361180,1.2413199,111380.0,111370.0,0.03586192]
[1761755361324,1.15150089,111380.0,111370.0,0.03586192]
[1761755363492,0.67887674,111380.0,111370.0,0.03586192]
[1761755364039,1.15150089,111380.0,111370.0,0.03586192]
[1761755365170,1.06168188,111380.0,111370.0,0.03586192]
[1761755365708,0.52156545,111380.0,111370.0,0.08579192]
[1761755365920,0.18156545,111380.0,111370.0,0.08579192]
[1761755367267,0.6854996,111380.0,111370.0,0.03586192]
[1761755367655,0.7307496,111380.0,111370.0,0.00333192]
[1761755368032,0.6854996,111380.0,111370.0,0.03586192]
[1761755368801,0.6541896,111380.0,111370.0,0.08579192]
[1761755368999,0.18156545,111380.0,111370.0,0.08579192]
[1761755369447,0.27138446,111380.0,111370.0,0.08579192]
[1761755369628,0.18156545,111380.0,111370.0,0.08579192]
[1761755371375,0.6854996,111380.0,111370.0,0.00333192]
[1761755371732,0.7307496,111380.0,111370.0,0.00333192]
[1761755372120,0.6854996,111380.0,111370.0,0.03586192]
[1761755373130,0.21287545,111380.0,111370.0,0.03586192]
[1761755373287,0.6854996,111380.0,111370.0,0.08579192]
[1761755373508,0.6854996,111380.0,111370.0,0.03586192]
[1761755374033,0.7307496,111380.0,111370.0,0.00333192]
[1761755374172,0.6854996,111380.0,111370.0,0.03586192]
[1761755374878,0.6854996,111380.0,111370.0,0.00333192]
[1761755375078,3.19675089,111380.0,111370.0,0.00333192]
[1761755376607,3.26566382,111380.0,111370.0,0.00333192]
[1761755376812,3.35548283,111380.0,111370.0,0.00333192]
[1761755377235,3.82810698,111380.0,111370.0,0.00333192]
[1761755377442,4.13085976,111380.0,111370.0,0.00333192]
[1761755379399,3.35554246,111380.0,111370.0,0.00333192]
[1761755381791,3.26572345,111380.0,111370.0,0.00333192]
[1761755382790,2.79303967,111380.0,111370.0,0.00333192]
[1761755382966,2.92572345,111380.0,111370.0,0.00333192]
[1761755383493,3.26572345,111380.0,111370.0,0.00333192]
[1761755384843,3.26572345,111380.0,111370.0,0.00338192]
[1761755385161,3.35554246,111380.0,111370.0,0.00338192]
[1761755389610,3.35542351,111380.0,111370.0,0.00338192]
[1761755390826,4.02810729,111380.0,111370.0,1e-08]
[1761755391049,4.06420507,111380.0,111370.0,1e-08]
[1761755391245,4.07420506,111380.0,111370.0,1e-08]
[1761755391455,0.17961383,111350.0,111340.0,0.0004]
[1761755391669,2.8759815,111350.0,111340.0,0.0004]
[1761755391884,2.9252815,111350.0,111340.0,0.0004]
[1761755393309,2.99235454,111350.0,111340.0,0.0004]
[1761755393514,2.99235454,111350.0,111340.0,0.0014]
[1761755393515,2.99335454,111350.0,111340.0,0.0014]
[1761755397354,2.99335454,111350.0,111340.0,0.00205201]
[1761755400320,2.52067076,111350.0,111340.0,0.00205201]
[1761755400754,2.99335454,111350.0,111340.0,0.00205201]
[1761755403381,3.25230162,111350.0,111340.0,0.00205201]
[1761755403551,2.52067076,111350.0,111340.0,0.00205201]
[1761755403759,3.25230162,111350.0,111340.0,0.00205201]
[1761755403963,2.91126082,111340.0,111330.0,0.0005]
[1761755404171,3.17293683,111340.0,111330.0,0.0005]
[1761755404551,2.44130597,111340.0,111330.0,0.00071739]
[1761755404757,3.17293683,111340.0,111330.0,0.00071739]
[1761755405562,3.17393683,111340.0,111330.0,0.00371739]
[1761755406613,2.44230597,111340.0,111330.0,0.00371739]
[1761755406794,3.17393683,111340.0,111330.0,0.00371739]
[1761755407599,2.44230597,111340.0,111330.0,0.00371739]
[1761755407908,3.17393683,111340.0,111330.0,0.00371739]
[1761755408837,3.17393683,111340.0,111330.0,0.00163138]
[1761755409198,2.66340837,111330.0,111320.0,0.00444341]
[1761755409551,2.21584451,111320.0,111310.0,0.0004]
[1761755409759,3.11494438,111320.0,111310.0,0.0004]
[1761755409973,3.45494438,111320.0,111310.0,0.0004]
[1761755411986,3.45994438,111320.0,111310.0,0.0014]
[1761755412700,3.45994438,111320.0,111310.0,1e-08]
[1761755412938,3.49586698,111320.0,111310.0,1e-08]
[1761755414200,3.50586697,111320.0,111310.0,1e-08]
[1761755414410,3.49586698,111320.0,111310.0,1e-08]
[1761755414626,3.50586697,111320.0,111310.0,1e-08]
[1761755415271,3.50586697,111320.0,111300.0,1e-08]
[1761755415478,3.50586697,111320.0,111290.0,1e-08]
[1761755415479,2.24739679,111300.0,111290.0,1e-08]
[1761755415682,3.13100138,111300.0,111290.0,1e-08]
[1761755415890,3.17975138,111300.0,111290.0,1e-08]
[1761755416103,3.17975138,111300.0,111290.0,0.00086989]
[1761755416313,3.24625499,111300.0,111290.0,0.00086989]
[1761755416730,3.25025499,111300.0,111290.0,0.00186989]
[1761755417186,2.51862413,111300.0,111290.0,0.00186989]
[1761755417380,2.46496941,111300.0,111290.0,0.00186989]
[1761755417611,3.19660027,111300.0,111290.0,0.00186989]
[1761755418036,3.19260027,111300.0,111290.0,0.00086989]
[1761755418282,3.19760027,111300.0,111290.0,0.00186989]
[1761755418490,3.28341928,111300.0,111290.0,0.00086989]
[1761755418706,3.28241928,111300.0,111290.0,0.00086989]
[1761755418932,3.28541928,111300.0,111290.0,0.00186989]
[1761755419110,3.28341928,111300.0,111290.0,0.00086989]
[1761755419542,3.28841928,111300.0,111290.0,0.00186989]
[1761755420240,3.28741928,111300.0,111290.0,0.00186989]
[1761755420860,3.28841928,111300.0,111290.0,0.00186989]
[1761755423489,3.27991928,111300.0,111290.0,0.00186989]
[1761755423896,3.243737,111300.0,111290.0,0.00186989]
[1761755424314,3.27991928,111300.0,111290.0,0.00186989]
[1761755424690,3.27991928,111300.0,111290.0,1e-08]
[1761755424691,3.63841927,111300.0,111290.0,1e-08]
[1761755425685,3.62841928,111300.0,111290.0,1e-08]
[1761755425919,3.592237,111300.0,111290.0,1e-08]
[1761755426969,3.62841928,111300.0,111290.0,1e-08]
[1761755427464,3.41860166,111300.0,111290.0,0.03046001]
[1761755427669,0.006,111300.0,111290.0,0.29073067]
[1761755427855,0.006,111300.0,111290.0,1.02236153]
[1761755428059,0.006,111300.0,111290.0,1.11218054]
[1761755428190,0.005,111300.0,111290.0,0.38054968]
[1761755428728,0.001,111300.0,111290.0,0.38054967]
[1761755429147,0.003,111300.0,111290.0,0.38054967]
[1761755429351,0.003,111300.0,111290.0,0.54161667]
[1761755429689,0.91899631,111320.0,111310.0,0.03046]
[1761755429833,1.00881532,111320.0,111310.0,0.06324]
[1761755430039,0.17967837,111310.0,111290.0,0.21249027]
[1761755430237,0.94282923,111310.0,111300.0,0.03046]
[1761755431252,0.17969451,111300.0,111290.0,0.08056]
[1761755431506,1.00090269,111300.0,111290.0,0.08056]
[1761755431656,1.00090269,111300.0,111290.0,0.11102]
[1761755432007,1.03242269,111300.0,111290.0,0.06324]
[1761755432230,0.17971066,111290.0,111280.0,0.08077754]
[1761755432438,0.91134152,111290.0,111280.0,0.08077754]
[1761755432639,1.00116053,111290.0,111280.0,0.11123754]
[1761755433102,1.04966053,111290.0,111280.0,0.06345754]
[1761755433604,1.05875596,111290.0,111280.0,0.06345754]
[1761755434148,1.01225596,111290.0,111280.0,0.11123754]
[1761755434571,1.01225596,111290.0,111280.0,0.06345754]
[1761755434572,1.04377596,111290.0,111280.0,0.06345754]
[1761755434771,1.06244596,111290.0,111280.0,0.06345754]
[1761755435342,1.11119596,111290.0,111280.0,0.00021754]
[1761755437619,0.29019967,111290.0,111280.0,0.03292754]
[1761755437823,0.20038066,111290.0,111280.0,0.07817754]
[1761755438055,1.01358152,111290.0,111280.0,0.00021754]
[1761755438248,1.13958281,111290.0,111280.0,0.00021754]
[1761755438463,1.56940182,111290.0,111280.0,0.00021754]
[1761755438662,1.57845018,111290.0,111280.0,0.00021754]
[1761755438889,1.52985018,111290.0,111280.0,0.00021754]
[1761755439068,0.57335066,111290.0,111280.0,0.03292754]
[1761755440046,0.57335066,111290.0,111280.0,0.00021754]
[1761755440249,1.35358152,111290.0,111280.0,0.00021754]
[1761755441707,1.36261149,111290.0,111280.0,0.00021754]
[1761755441910,1.4524305,111290.0,111280.0,0.00021754]
[1761755442895,1.4038305,111290.0,111280.0,0.00021754]
[1761755443431,1.4038305,111290.0,111280.0,0.03292754]
[1761755444684,3.54224951,111290.0,111280.0,0.00021754]
[1761755445491,3.57843179,111290.0,111280.0,0.00021754]
[1761755445695,3.57843179,111290.0,111280.0,1e-08]
[1761755446626,3.57643179,111290.0,111280.0,1e-08]
[1761755446927,3.57843179,111290.0,111280.0,1e-08]
[1761755447125,3.28753995,111280.0,111270.0,0.0004]
[1761755447356,3.54594628,111280.0,111270.0,0.0004]
[1761755449782,3.54794628,111280.0,111270.0,0.0024]
[1761755451086,3.511764,111280.0,111270.0,0.0024]
[1761755451739,3.54794628,111280.0,111270.0,0.0024]
[1761755452854,3.54794628,111280.0,111270.0,0.00261756]
[1761755456885,1.37358668,111280.0,111270.0,0.03560756]
[1761755457982,1.37358668,111280.0,111270.0,0.06831756]
[1761755458822,0.52172681,111280.0,111270.0,0.11356756]
[1761755459023,1.25335767,111280.0,111270.0,0.11356756]
[1761755459254,1.34317668,111280.0,111270.0,0.11356756]
[1761755460072,1.37614668,111280.0,111270.0,0.11356756]
[1761755460485,1.34317668,111280.0,111270.0,0.11356756]
[1761755460693,1.37614668,111280.0,111270.0,0.00261756]
[1761755460898,1.37614668,111280.0,111270.0,0.03532756]
[1761755462375,1.34317668,111280.0,111270.0,0.08057756]
[1761755463340,1.08481225,111280.0,111270.0,0.08057756]
[1761755464326,0.61154582,111280.0,111270.0,0.08057756]
[1761755464747,1.08481225,111280.0,111270.0,0.08057756]
[1761755465562,0.61154582,111280.0,111270.0,0.08057756]
[1761755465771,1.08481225,111280.0,111270.0,0.08057756]
[1761755465988,0.18172681,111280.0,111270.0,0.08057756]
[1761755466204,0.002,111280.0,111270.0,0.35013953]
[1761755466548,0.002,111280.0,111270.0,0.82340596]
[1761755466753,0.002,111280.0,111270.0,0.35013953]
[1761755466958,0.18867923,111300.0,111280.0,0.17971361]
[1761755467208,0.66194566,111300.0,111290.0,0.24420066]
[1761755467436,0.66194566,111300.0,111290.0,0.28959066]
[1761755467789,0.18867923,111300.0,111290.0,0.28959066]
[1761755469433,0.18967923,111300.0,111290.0,0.29359066]
[1761755470253,0.001,111300.0,111290.0,0.29359066]
[1761755470678,0.001,111300.0,111290.0,0.38340967]
[1761755470886,0.001,111300.0,111290.0,0.38440967]
[1761755475796,0.001,111300.0,111290.0,0.38348883]
[1761755476568,0.001,111300.0,111290.0,0.33809883]
[1761755476793,0.47426643,111300.0,111290.0,0.24827982]
[1761755476985,0.001,111300.0,111290.0,0.29349982]
[1761755477308,0.001,111300.0,111290.0,0.34082116]
[1761755477754,0.001,111300.0,111290.0,0.43064017]
[1761755478388,0.001,111300.0,111290.0,0.38331883]
[1761755479586,0.001,111300.0,111290.0,0.79949138]
[1761755480676,0.001,111300.0,111290.0,1.21566393]
[1761755480890,0.001,111300.0,111290.0,0.79949138]
[1761755481121,0.001,111300.0,111290.0,1.13949138]
[1761755481366,0.001,111300.0,111290.0,1.22931039]
[1761755481685,0.001,111300.0,111290.0,1.64548294]
[1761755481900,0.001,111300.0,111290.0,1.22931039]
[1761755482310,0.17964908,111330.0,111320.0,0.17966223]
[1761755482513,0.17964908,111330.0,111320.0,0.23262223]
[1761755482746,0.17964908,111330.0,111320.0,0.27784223]
[1761755483387,0.17964609,111330.0,111320.0,0.27784223]
[1761755484207,0.17964609,111330.0,111320.0,0.27884223]
[1761755484442,0.18064609,111330.0,111320.0,0.27984223]
[1761755484663,0.74317464,111330.0,111320.0,0.10018]
[1761755486885,0.65335563,111330.0,111320.0,0.27984223]
[1761755487420,0.18064609,111330.0,111320.0,0.27984223]
[1761755488168,0.001,111330.0,111320.0,0.27984223]
[1761755488802,0.001,111330.0,111320.0,0.36966124]
[1761755493080,0.18866748,111350.0,111340.0,0.17962996]
[1761755493264,0.18866748,111350.0,111340.0,0.24304996]
[1761755493467,0.18866748,111350.0,111340.0,0.28826996]
[1761755494474,0.66380275,111360.0,111340.0,0.28926996]
[1761755494694,1.09362176,111360.0,111350.0,0.0764]
[1761755494952,1.09362176,111360.0,111350.0,0.25601383]
[1761755494953,0.00211671,111360.0,111350.0,0.25601383]
[1761755495164,0.65442395,111360.0,111350.0,0.0764]
[1761755495542,0.65442395,111360.0,111350.0,0.25601383]
[1761755495692,0.65442395,111360.0,111350.0,0.0764]
[1761755495896,0.7387317,111360.0,111350.0,0.0764]
[1761755496130,0.7696617,111360.0,111350.0,0.03118]
[1761755496476,0.29695216,111360.0,111350.0,0.03118]
[1761755496659,0.7696617,111360.0,111350.0,0.03118]
[1761755497036,0.7736617,111360.0,111350.0,0.03218]
[1761755497850,0.7427317,111360.0,111350.0,0.08025]
[1761755498029,0.7427317,111360.0,111350.0,0.03318]
[1761755498030,0.7740017,111360.0,111350.0,0.03318]
[1761755498955,0.7427317,111360.0,111350.0,0.08125]
[1761755499346,0.65842395,111360.0,111350.0,0.08125]
[1761755499549,0.18571441,111360.0,111350.0,0.07699951]
[1761755500006,0.00611671,111360.0,111350.0,0.34643235]
[1761755504247,0.65842395,111360.0,111350.0,0.25661334]
[1761755505076,0.65842395,111360.0,111350.0,0.07699951]
[1761755505303,0.7422246,111360.0,111350.0,0.07699951]
[1761755505498,0.7422246,111360.0,111350.0,0.25661334]
[1761755505499,1.10133516,111360.0,111350.0,0.25661334]
[1761755506484,1.10133516,111360.0,111350.0,0.07699951]
[1761755506705,1.13260516,111360.0,111350.0,0.02892951]
[1761755506927,4.02648422,111360.0,111350.0,0.002]
[1761755507211,4.03477375,111360.0,111350.0,0.002]
[1761755507809,4.03477375,111360.0,111350.0,0.03429]
[1761755507810,3.5707137,111360.0,111350.0,0.03429]
[1761755507975,3.6188637,111360.0,111350.0,0.002]
[1761755509309,4.03477375,111360.0,111350.0,0.002]
[1761755510020,4.07095603,111360.0,111350.0,0.002]
[1761755510878,3.86735001,111360.0,111350.0,0.002]
[1761755511080,4.04694771,111360.0,111350.0,0.002]
[1761755512495,4.04694771,111360.0,111350.0,0.001]
[1761755512904,0.51962996,111340.0,111330.0,0.04807]
[1761755513155,1.35145006,111340.0,111330.0,0.04807]
[1761755513401,1.35145006,111340.0,111330.0,0.08036]
[1761755515113,1.35245006,111340.0,111330.0,0.08336]
[1761755515633,1.35245006,111340.0,111330.0,0.08436]
[1761755517198,0.18062996,111340.0,111330.0,0.08436]
[1761755517411,0.18062996,111340.0,111330.0,0.50027005]
[1761755517617,0.59654001,111340.0,111330.0,0.08436]